[Event "1st Chateau Montaiguillon Rapid 2019"]
[Site "Montagne"]
[Date "2019.09.08"]
[Round "3.5"]
[White "Sochacki, Christophe"]
[Black "Estadieu, Romeo"]
[Result "1/2-1/2"]
[ECO "A90"]
[WhiteElo "2479"]
[BlackElo "2099"]
[Annotator "ChessBase"]
[PlyCount "123"]
[EventDate "2019.09.08"]
[EventType "swiss"]
[EventCountry "FRA"]
[SourceTitle "playchess.com"]
[Source "ChessBase"]
[SourceQuality "1"]
[TimeControl "720+3"]

1. d4 {[%emt 0:00:00]} e6 {[%emt 0:00:00]} 2. c4 {[%emt 0:00:00]} f5 {[%emt 0:00:00]} 3. Nc3 {[%emt 0:00:01]} Nf6 {[%emt 0:00:00]} 4. g3 {[%emt 0:00:08]} d5 {[%emt 0:00:01]} 5. Bg2 {[%emt 0:00:06]} c6 {[%emt 0:00:01]} 6. Nf3 {[%emt 0:00:08]} Bd6 {[%emt 0:00:01]} 7. Bf4 {[%emt 0:00:15]} O-O {[%emt 0:00:09]} 8. O-O {[%emt 0:00:06]} Qe7 {[%emt 0:00:26]} 9. e3 {[%emt 0:00:10]} Nbd7 {[%emt 0:01:00]} 10. c5 {[%emt 0:00:04]} Bb8 {[%emt 0:00:01]} 11. b4 {[%emt 0:01:33]} h6 {[%emt 0:00:09]} 12. Bxb8 {[%emt 0:00:36]} Rxb8 {[%emt 0:01:11]} 13. Ne5 {[%emt 0:00:01]} Nxe5 {[%emt 0:00:25]} 14. dxe5 {[%emt 0:00:01]} Nd7 {[%emt 0:00:03]} 15. Qd4 {[%emt 0:01:44]} b6 {[%emt 0:00:06]} 16. Na4 {[%emt 0:00:04]} bxc5 {[%emt 0:01:19]} 17. Nxc5 {[%emt 0:00:10]} Nxc5 {[%emt 0:00:19]} 18. bxc5 {[%emt 0:00:25]} Ba6 {[%emt 0:00:14]} 19. Rfb1 {[%emt 0:00:08]} Qc7 {[%emt 0:00:04]} 20. a3 {[%emt 0:00:54]} Bc4 {[%emt 0:01:07]} 21. Bf1 {[%emt 0:00:35]} Bxf1 {[%emt 0:00:04]} 22. Kxf1 {[%emt 0:00:02]} Qa5 {[%emt 0:00:19]} 23. Rb4 {[%emt 0:00:06]} Rb5 {[%emt 0:00:19]} 24. Rab1 {[%emt 0:00:27]} Rfb8 {[%emt 0:00:03]} 25. Rxb5 {[%emt 0:01:33]} Rxb5 {[%emt 0:00:02]} 26. Rxb5 {[%emt 0:00:02]} Qxb5+ {[%emt 0:00:01]} 27. Kg2 {[%emt 0:00:01]} Kf7 {[%emt 0:00:18]} 28. g4 {[%emt 0:00:12]} fxg4 {[%emt 0:00:32]} 29. Qf4+ {[%emt 0:00:02]} Kg8 {[%emt 0:01:54]} 30. Qxg4 {[%emt 0:00:01]} Kf7 {[%emt 0:00:54]} 31. Qh5+ {[%emt 0:00:08]} Kf8 {[%emt 0:00:01]} 32. Qh4 {[%emt 0:00:01]} Qxc5 {[%emt 0:00:13]} 33. Qd8+ {[%emt 0:01:20]} Kf7 {[%emt 0:00:00]} 34. Qd7+ {[%emt 0:00:02]} Qe7 {[%emt 0:00:02]} 35. Qxc6 {[%emt 0:00:01]} Qxa3 {[%emt 0:00:05]} 36. h4 {[%emt 0:00:09]} Qe7 {[%emt 0:00:07]} 37. Kg3 {[%emt 0:00:04]} h5 {[%emt 0:00:30]} 38. Qa4 {[%emt 0:00:49]} g5 {[%emt 0:00:03]} 39. Kh3 {[%emt 0:00:12]} Kg6 {[%emt 0:00:33]} 40. hxg5 {[%emt 0:00:10]} Qxg5 {[%emt 0:00:14]} 41. Qe8+ {[%emt 0:00:02]} Kf5 {[%emt 0:00:22]} 42. Qf7+ {[%emt 0:00:03]} Ke4 {[%emt 0:00:01]} 43. Qxa7 {[%emt 0:00:04]} Qxe5 {[%emt 0:00:19]} 44. Kg2 {[%emt 0:00:17]} d4 {[%emt 0:00:21]} 45. Qa4 {[%emt 0:00:38]} Qd5 {[%emt 0:00:01]} 46. Kf1 {[%emt 0:00:15]} Ke5 {[%emt 0:00:06]} 47. f4+ {[%emt 0:00:17]} Ke4 {[%emt 0:00:10]} 48. Ke2 {[%emt 0:00:02]} Kf5 {[%emt 0:00:04]} 49. exd4 {[%emt 0:00:08]} Kxf4 {[%emt 0:00:03]} 50. Qb4 {[%emt 0:00:03]} Qe4+ {[%emt 0:00:03]} 51. Kf2 {[%emt 0:00:03]} Qe3+ {[%emt 0:00:02]} 52. Kg2 {[%emt 0:00:01]} Qg3+ {[%emt 0:00:02]} 53. Kf1 {[%emt 0:00:01]} Qf3+ {[%emt 0:00:02]} 54. Ke1 {[%emt 0:00:01]} h4 {[%emt 0:00:03]} 55. Qd6+ {[%emt 0:00:02]} Kg4 {[%emt 0:00:02]} 56. Qxe6+ {[%emt 0:00:02]} Kg3 {[%emt 0:00:01]} 57. Qg6+ {[%emt 0:00:11]} Qg4 {[%emt 0:00:02]} 58. Qxg4+ {[%emt 0:00:07]} Kxg4 {[%emt 0:00:01]} 59. Kf2 {[%emt 0:00:01]} Kf4 {[%emt 0:00:01]} 60. Kg2 {[%emt 0:00:01]} Ke4 {[%emt 0:00:01]} 61. Kh3 {[%emt 0:00:01]} Kxd4 {[%emt 0:00:00]} 62. Kxh4 {[%emt 0:00:15]} 1/2-1/2

[Event "1st Chateau Montaiguillon Rapid 2019"]
[Site "Montagne"]
[Date "2019.09.08"]
[Round "4.1"]
[White "Fantinel, Thibault"]
[Black "Moussard, Jules"]
[Result "0-1"]
[ECO "B52"]
[WhiteElo "2384"]
[BlackElo "2608"]
[Annotator "RC"]
[PlyCount "68"]
[EventDate "2019.09.08"]
[EventType "swiss"]
[EventCountry "FRA"]
[SourceTitle "playchess.com"]
[Source "ChessBase"]
[SourceQuality "1"]
[TimeControl "720+3"]

1. e4 {[%emt 0:00:00]} c5 {[%emt 0:00:00]} 2. Nf3 {[%emt 0:00:04]} d6 {[%emt 0:00:08]} 3. Bb5+ {[%emt 0:00:04]} Bd7 {[%emt 0:00:01]} 4. c4 {[%emt 0:00:03]} Nc6 {[%emt 0:00:11]} 5. O-O {[%emt 0:00:29]} Nf6 {[%emt 0:00:04]} 6. Nc3 {[%emt 0:00:08]} g6 {[%emt 0:00:02]} 7. d4 {[%emt 0:01:02]} cxd4 {[%emt 0:00:02]} 8. Nxd4 {[%emt 0:00:02]} Bg7 {[%emt 0:00:04]} 9. Bxc6 {[%emt 0:00:23]} bxc6 {[%emt 0:00:06]} 10. c5 {[%emt 0:00:02]} O-O {[%emt 0:00:59]} 11. cxd6 {[%emt 0:00:19]} exd6 {[%emt 0:00:02]} 12. Bf4 {[%emt 0:00:25]} Re8 {[%emt 0:00:06]} 13. Re1 {[%emt 0:01:11]} Qb6 {[%emt 0:02:49]} 14. Qd2 {[%emt 0:01:23]} Nxe4 {[%emt 0:00:43]} 15. Nxe4 {[%emt 0:00:30]} Qxd4 {[%emt 0:00:06]} 16. Qxd4 {[%emt 0:02:13]} Bxd4 {[%emt 0:00:02]} 17. Nxd6 {[%emt 0:00:02]} Rxe1+ {[%emt 0:00:05]} 18. Rxe1 {[%emt 0:00:01]} Bxb2 {[%emt 0:00:07]} 19. Nc4 {[%emt 0:01:15]} Bf6 {[%emt 0:00:20]} 20. Rc1 {[%emt 0:02:08]} Be6 {[%emt 0:00:25]} 21. a4 {[%emt 0:00:25]} Rd8 {[%emt 0:00:08]} 22. Ne5 {[%emt 0:00:24]} Rd4 {[%emt 0:00:03]} 23. Bg3 {[%emt 0:00:19]} Rxa4 {[%emt 0:00:40]} 24. Nxc6 {[%emt 0:00:02]} Bd5 {[%emt 0:00:15]} 25. h3 {[%emt 0:00:08]} h5 {[%emt 0:00:03]} 26. Be5 {[%emt 0:00:05]} Bxe5 {[%emt 0:00:08]} 27. Nxe5 {[%emt 0:00:05]} Kg7 {[%emt 0:00:07]} 28. Rc7 {[%emt 0:00:04]} a5 {[%emt 0:00:06]} 29. Ra7 {[%emt 0:00:01]} Ra1+ {[%emt 0:00:02]} 30. Kh2 {[%emt 0:00:01]} a4 {[%emt 0:00:14]} 31. Ra5 {[%emt 0:00:02]} Be6 {[%emt 0:00:02]} 32. h4 {[%emt 0:00:03]} a3 {[%emt 0:00:02]} 33. Kg3 {[%emt 0:00:11]} a2 {[%emt 0:00:05]} 34. Nd3 {[%emt 0:00:02]} Rd1 {[%emt 0:00:05]} 0-1

[Event "1st Chateau Montaiguillon Rapid 2019"]
[Site "Montagne"]
[Date "2019.09.08"]
[Round "4.2"]
[White "Fressinet, Laurent"]
[Black "Le Hetet, Nicolas"]
[Result "1-0"]
[ECO "B30"]
[WhiteElo "2633"]
[BlackElo "2391"]
[Annotator "RC"]
[PlyCount "73"]
[EventDate "2019.09.08"]
[EventType "swiss"]
[EventCountry "FRA"]
[SourceTitle "playchess.com"]
[Source "ChessBase"]
[SourceQuality "1"]
[TimeControl "720+3"]

1. e4 {[%emt 0:00:00]} c5 {[%emt 0:00:01]} 2. Nf3 {[%emt 0:00:02]} Nc6 {[%emt 0:00:02]} 3. Bb5 {[%emt 0:00:10]} g6 {[%emt 0:00:05]} 4. Bxc6 {[%emt 0:00:10]} dxc6 {[%emt 0:00:03]} 5. d3 {[%emt 0:00:05]} Bg7 {[%emt 0:00:04]} 6. O-O {[%emt 0:00:10]} Nf6 {[%emt 0:00:41]} 7. Nc3 {[%emt 0:00:12]} O-O {[%emt 0:00:43]} 8. e5 {[%emt 0:00:30]} Ne8 {[%emt 0:00:30]} 9. h3 {[%emt 0:00:21]} Nc7 {[%emt 0:00:17]} 10. Ne4 {[%emt 0:00:08]} Ne6 {[%emt 0:00:05]} 11. Be3 {[%emt 0:00:35]} b6 {[%emt 0:00:27]} 12. Qd2 {[%emt 0:00:05]} f6 {[%emt 0:01:37]} 13. Bh6 {[%emt 0:00:13]} Nd4 {[%emt 0:00:28]} 14. Nxd4 {[%emt 0:00:13]} Qxd4 {[%emt 0:00:16]} 15. Bxg7 {[%emt 0:01:12]} Kxg7 {[%emt 0:00:02]} 16. exf6+ {[%emt 0:00:02]} exf6 {[%emt 0:00:02]} 17. b3 {[%emt 0:00:02]} Be6 {[%emt 0:01:15]} 18. Rae1 {[%emt 0:00:09]} Bf7 {[%emt 0:00:21]} 19. Re2 {[%emt 0:00:38]} Rad8 {[%emt 0:00:51]} 20. Rfe1 {[%emt 0:00:13]} Rfe8 {[%emt 0:00:40]} 21. h4 {[%emt 0:01:39]} c4 {[%emt 0:01:23]} 22. bxc4 {[%emt 0:00:24]} Bxc4 {[%emt 0:00:01]} 23. h5 {[%emt 0:00:49]} Bf7 {[%emt 0:01:00]} 24. h6+ {[%emt 0:00:05]} Kf8 {[%emt 0:00:13]} 25. c3 {[%emt 0:00:46]} Qxd3 {[%emt 0:00:17]} 26. Qxd3 {[%emt 0:00:13]} Rxd3 {[%emt 0:00:02]} 27. Nxf6 {[%emt 0:00:02]} Rxe2 {[%emt 0:00:10]} 28. Nxh7+ {[%emt 0:00:10]} Kg8 {[%emt 0:00:34]} 29. Nf6+ {[%emt 0:00:02]} Kh8 {[%emt 0:00:01]} 30. Rxe2 {[%emt 0:00:02]} Rd6 {[%emt 0:00:07]} 31. Ne4 {[%emt 0:00:19]} Rd1+ {[%emt 0:00:21]} 32. Kh2 {[%emt 0:00:01]} Bc4 {[%emt 0:00:08]} 33. Re3 {[%emt 0:00:02]} Kh7 {[%emt 0:00:02]} 34. Rh3 {[%emt 0:00:03]} Bxa2 {[%emt 0:00:05]} 35. Nf6+ {[%emt 0:00:42]} Kh8 {[%emt 0:00:01]} 36. Re3 {[%emt 0:00:03]} Rd8 {[%emt 0:00:10]} 37. Re7 {[%emt 0:00:04]} 1-0

[Event "1st Chateau Montaiguillon Rapid 2019"]
[Site "Montagne"]
[Date "2019.09.08"]
[Round "4.4"]
[White "Cornette, Matthieu"]
[Black "Favarel, Julien"]
[Result "1-0"]
[ECO "A13"]
[WhiteElo "2558"]
[BlackElo "2331"]
[Annotator "RC"]
[PlyCount "55"]
[EventDate "2019.09.08"]
[EventType "swiss"]
[EventCountry "FRA"]
[SourceTitle "playchess.com"]
[Source "ChessBase"]
[SourceQuality "1"]
[TimeControl "720+3"]

1. Nf3 {[%emt 0:00:00]} d5 {[%emt 0:00:00]} 2. c4 {[%emt 0:00:02]} e6 {[%emt 0:00:08]} 3. g3 {[%emt 0:00:01]} g6 {[%emt 0:00:05]} 4. Bg2 {[%emt 0:00:05]} Bg7 {[%emt 0:00:01]} 5. d4 {[%emt 0:00:02]} Ne7 {[%emt 0:00:09]} 6. O-O {[%emt 0:00:03]} O-O {[%emt 0:00:12]} 7. Qc2 {[%emt 0:00:02]} c5 {[%emt 0:01:43]} 8. dxc5 {[%emt 0:00:39]} d4 {[%emt 0:00:02]} 9. Bf4 {[%emt 0:00:52]} Nbc6 {[%emt 0:00:20]} 10. Bd6 {[%emt 0:00:03]} Nf5 {[%emt 0:00:02]} 11. Bxf8 {[%emt 0:00:04]} Qxf8 {[%emt 0:00:01]} 12. Nbd2 {[%emt 0:00:21]} Qxc5 {[%emt 0:00:04]} 13. Ne1 {[%emt 0:00:36]} e5 {[%emt 0:00:22]} 14. Nd3 {[%emt 0:00:05]} Qe7 {[%emt 0:00:01]} 15. c5 {[%emt 0:00:19]} a5 {[%emt 0:00:48]} 16. a3 {[%emt 0:00:36]} a4 {[%emt 0:00:06]} 17. Nb4 {[%emt 0:00:19]} Be6 {[%emt 0:03:38]} 18. Rfc1 {[%emt 0:00:07]} h5 {[%emt 0:00:23]} 19. Nxc6 {[%emt 0:00:10]} bxc6 {[%emt 0:00:01]} 20. Bxc6 {[%emt 0:00:04]} Rc8 {[%emt 0:00:01]} 21. Bg2 {[%emt 0:00:18]} h4 {[%emt 0:00:04]} 22. Qxa4 {[%emt 0:01:12]} hxg3 {[%emt 0:00:02]} 23. hxg3 {[%emt 0:00:02]} Bh6 {[%emt 0:00:02]} 24. Qc2 {[%emt 0:01:17]} Kg7 {[%emt 0:00:21]} 25. b4 {[%emt 0:00:23]} Rh8 {[%emt 0:00:13]} 26. Ne4 {[%emt 0:00:26]} Bd5 {[%emt 0:00:13]} 27. c6 {[%emt 0:00:36]} Bxe4 {[%emt 0:03:54]} 28. Qxe4 {[%emt 0:00:42]} 1-0

[Event "1st Chateau Montaiguillon Rapid 2019"]
[Site "Montagne"]
[Date "2019.09.08"]
[Round "4.5"]
[White "Guichard, Pauline"]
[Black "Sochacki, Christophe"]
[Result "0-1"]
[ECO "A20"]
[WhiteElo "2407"]
[BlackElo "2479"]
[Annotator "ChessBase"]
[PlyCount "102"]
[EventDate "2019.09.08"]
[EventType "swiss"]
[EventCountry "FRA"]
[SourceTitle "playchess.com"]
[Source "ChessBase"]
[SourceQuality "1"]
[TimeControl "720+3"]

1. c4 {[%emt 0:00:00]} e5 {[%emt 0:00:00]} 2. g3 {[%emt 0:00:02]} Nf6 {[%emt 0:00:01]} 3. Bg2 {[%emt 0:00:03]} c6 {[%emt 0:00:02]} 4. Nf3 {[%emt 0:00:23]} e4 {[%emt 0:00:12]} 5. Nd4 {[%emt 0:00:03]} d5 {[%emt 0:00:04]} 6. d3 {[%emt 0:00:30]} dxc4 {[%emt 0:00:33]} 7. dxc4 {[%emt 0:00:08]} Bb4+ {[%emt 0:00:18]} 8. Nc3 {[%emt 0:00:30]} O-O {[%emt 0:00:28]} 9. O-O {[%emt 0:00:05]} Re8 {[%emt 0:00:13]} 10. Bg5 {[%emt 0:00:10]} Bxc3 {[%emt 0:00:08]} 11. bxc3 {[%emt 0:00:05]} h6 {[%emt 0:00:03]} 12. Bf4 {[%emt 0:00:17]} Nbd7 {[%emt 0:00:12]} 13. Bd6 {[%emt 0:00:17]} Ne5 {[%emt 0:00:13]} 14. c5 {[%emt 0:00:08]} Nc4 {[%emt 0:00:03]} 15. Nb3 {[%emt 0:00:38]} Nd5 {[%emt 0:01:20]} 16. Qd4 {[%emt 0:00:20]} Nxd6 {[%emt 0:00:03]} 17. cxd6 {[%emt 0:00:03]} b5 {[%emt 0:01:51]} 18. a4 {[%emt 0:00:46]} Be6 {[%emt 0:02:44]} 19. axb5 {[%emt 0:00:29]} cxb5 {[%emt 0:00:03]} 20. Bxe4 {[%emt 0:00:06]} Qxd6 {[%emt 0:00:07]} 21. Rfd1 {[%emt 0:00:12]} Rad8 {[%emt 0:00:11]} 22. Nc5 {[%emt 0:01:03]} a5 {[%emt 0:00:47]} 23. Nb7 {[%emt 0:00:55]} Qc7 {[%emt 0:00:04]} 24. Nxd8 {[%emt 0:00:16]} Rxd8 {[%emt 0:00:01]} 25. Bg2 {[%emt 0:01:19]} Rd7 {[%emt 0:00:06]} 26. Rd3 {[%emt 0:00:05]} b4 {[%emt 0:00:07]} 27. Bxd5 {[%emt 0:00:49]} Rxd5 {[%emt 0:00:02]} 28. Qe4 {[%emt 0:00:08]} Rxd3 {[%emt 0:00:23]} 29. Qxd3 {[%emt 0:00:16]} b3 {[%emt 0:00:15]} 30. Qb5 {[%emt 0:00:35]} Qxc3 {[%emt 0:00:04]} 31. Qxa5 {[%emt 0:00:15]} Qc2 {[%emt 0:00:12]} 32. Qd8+ {[%emt 0:00:11]} Kh7 {[%emt 0:00:01]} 33. Qd3+ {[%emt 0:00:05]} Bf5 {[%emt 0:00:01]} 34. Qe3 {[%emt 0:02:19]} b2 {[%emt 0:00:03]} 35. Re1 {[%emt 0:00:03]} b1=Q {[%emt 0:00:07]} 36. Rxb1 {[%emt 0:00:02]} Qxb1+ {[%emt 0:00:02]} 37. Kg2 {[%emt 0:00:01]} Qe4+ {[%emt 0:00:02]} 38. Qxe4 {[%emt 0:00:03]} Bxe4+ {[%emt 0:00:01]} 39. f3 {[%emt 0:00:01]} Bc6 {[%emt 0:00:01]} 40. e4 {[%emt 0:00:04]} Kg6 {[%emt 0:00:01]} 41. Kf2 {[%emt 0:00:02]} Kf6 {[%emt 0:00:02]} 42. Ke3 {[%emt 0:00:02]} Ke6 {[%emt 0:00:01]} 43. Kd4 {[%emt 0:00:01]} f5 {[%emt 0:00:04]} 44. exf5+ {[%emt 0:00:04]} Kxf5 {[%emt 0:00:01]} 45. Ke3 {[%emt 0:00:01]} Ke5 {[%emt 0:00:03]} 46. h3 {[%emt 0:00:11]} Kf5 {[%emt 0:00:06]} 47. Kf2 {[%emt 0:00:04]} Ke5 {[%emt 0:00:04]} 48. Ke3 {[%emt 0:00:03]} Bb7 {[%emt 0:00:01]} 49. Kf2 {[%emt 0:00:04]} Kd4 {[%emt 0:00:02]} 50. g4 {[%emt 0:00:03]} g5 {[%emt 0:00:12]} 51. Kg3 {[%emt 0:00:08]} Ke5 {[%emt 0:02:48]} 0-1

[Event "1st Chateau Montaiguillon Rapid 2019"]
[Site "Montagne"]
[Date "2019.09.08"]
[Round "5.5"]
[White "Roubert, Emile"]
[Black "Daulyte-Cornette, Deimante"]
[Result "0-1"]
[ECO "B03"]
[WhiteElo "2014"]
[BlackElo "2412"]
[Annotator "ChessBase"]
[PlyCount "74"]
[EventDate "2019.09.08"]
[EventType "swiss"]
[EventCountry "FRA"]
[SourceTitle "playchess.com"]
[Source "ChessBase"]
[SourceQuality "1"]
[TimeControl "720+3"]

1. e4 {[%emt 0:00:00]} Nf6 {[%emt 0:00:01]} 2. e5 {[%emt 0:00:03]} Nd5 {[%emt 0:00:01]} 3. c4 {[%emt 0:00:02]} Nb6 {[%emt 0:00:02]} 4. d4 {[%emt 0:00:01]} d6 {[%emt 0:00:02]} 5. exd6 {[%emt 0:00:02]} cxd6 {[%emt 0:00:02]} 6. Nc3 {[%emt 0:00:03]} g6 {[%emt 0:00:06]} 7. Be3 {[%emt 0:00:02]} Bg7 {[%emt 0:00:03]} 8. Rc1 {[%emt 0:00:03]} O-O {[%emt 0:00:07]} 9. b3 {[%emt 0:00:03]} Bf5 {[%emt 0:00:08]} 10. Nf3 {[%emt 0:00:13]} d5 {[%emt 0:00:12]} 11. c5 {[%emt 0:00:43]} Nc8 {[%emt 0:00:03]} 12. Be2 {[%emt 0:00:35]} Nc6 {[%emt 0:00:06]} 13. O-O {[%emt 0:00:32]} Bg4 {[%emt 0:00:08]} 14. h3 {[%emt 0:02:13]} Bxf3 {[%emt 0:00:06]} 15. Bxf3 {[%emt 0:00:01]} e6 {[%emt 0:00:03]} 16. a3 {[%emt 0:00:44]} N8e7 {[%emt 0:00:21]} 17. Qd2 {[%emt 0:02:31]} Nf5 {[%emt 0:00:35]} 18. Ne2 {[%emt 0:00:05]} Nh4 {[%emt 0:01:24]} 19. b4 {[%emt 0:00:14]} Nxf3+ {[%emt 0:00:20]} 20. gxf3 {[%emt 0:00:01]} e5 {[%emt 0:01:54]} 21. Rfd1 {[%emt 0:00:48]} exd4 {[%emt 0:00:55]} 22. Nxd4 {[%emt 0:00:06]} Ne5 {[%emt 0:00:04]} 23. f4 {[%emt 0:00:25]} Nc4 {[%emt 0:00:05]} 24. Qe2 {[%emt 0:00:11]} Qd7 {[%emt 0:01:16]} 25. Qf3 {[%emt 0:00:07]} Rad8 {[%emt 0:00:33]} 26. f5 {[%emt 0:00:19]} Nxe3 {[%emt 0:00:34]} 27. fxe3 {[%emt 0:00:13]} Rfe8 {[%emt 0:00:23]} 28. c6 {[%emt 0:00:46]} bxc6 {[%emt 0:01:19]} 29. Nxc6 {[%emt 0:00:01]} Bh6 {[%emt 0:00:05]} 30. Nxd8 {[%emt 0:00:18]} Bxe3+ {[%emt 0:00:17]} 31. Kh1 {[%emt 0:00:14]} Bxc1 {[%emt 0:00:07]} 32. Nxf7 {[%emt 0:00:24]} Be3 {[%emt 0:00:54]} 33. fxg6 {[%emt 0:00:18]} hxg6 {[%emt 0:00:03]} 34. Nh8 {[%emt 0:01:01]} Kxh8 {[%emt 0:00:22]} 35. Qf6+ {[%emt 0:00:10]} Qg7 {[%emt 0:00:05]} 36. Qh4+ {[%emt 0:00:05]} Bh6 {[%emt 0:00:35]} 37. Rxd5 {[%emt 0:00:08]} Qa1+ {[%emt 0:00:30]} 0-1

[Event "1st Chateau Montaiguillon Rapid 2019"]
[Site "Montagne"]
[Date "2019.09.08"]
[Round "6.3"]
[White "Cornette, Matthieu"]
[Black "Sochacki, Christophe"]
[Result "0-1"]
[ECO "C12"]
[WhiteElo "2558"]
[BlackElo "2479"]
[Annotator "RC"]
[PlyCount "72"]
[EventDate "2019.09.08"]
[EventType "swiss"]
[EventCountry "FRA"]
[SourceTitle "playchess.com"]
[Source "ChessBase"]
[SourceQuality "1"]
[TimeControl "720+3"]

1. e4 {[%emt 0:00:00]} e6 {[%emt 0:00:00]} 2. d4 {[%emt 0:00:02]} d5 {[%emt 0:00:01]} 3. Nc3 {[%emt 0:00:07]} Nf6 {[%emt 0:00:01]} 4. Bg5 {[%emt 0:00:06]} Bb4 {[%emt 0:00:02]} 5. exd5 {[%emt 0:00:44]} Qxd5 {[%emt 0:00:05]} 6. Bxf6 {[%emt 0:00:02]} gxf6 {[%emt 0:00:01]} 7. Qd2 {[%emt 0:01:18]} Qa5 {[%emt 0:00:42]} 8. Nge2 {[%emt 0:00:02]} Bd7 {[%emt 0:00:20]} 9. a3 {[%emt 0:00:51]} Bd6 {[%emt 0:00:12]} 10. O-O-O {[%emt 0:00:10]} Nc6 {[%emt 0:00:36]} 11. d5 {[%emt 0:00:44]} Ne5 {[%emt 0:00:14]} 12. Nd4 {[%emt 0:00:35]} O-O-O {[%emt 0:00:19]} 13. Kb1 {[%emt 0:00:11]} Rhg8 {[%emt 0:00:33]} 14. g3 {[%emt 0:00:23]} Qb6 {[%emt 0:00:22]} 15. f4 {[%emt 0:00:35]} Ng4 {[%emt 0:00:46]} 16. Ka1 {[%emt 0:00:32]} a6 {[%emt 0:00:24]} 17. Bc4 {[%emt 0:00:20]} e5 {[%emt 0:00:01]} 18. Nde2 {[%emt 0:01:17]} Nf2 {[%emt 0:00:41]} 19. Rhf1 {[%emt 0:00:01]} Nxd1 {[%emt 0:00:01]} 20. Nxd1 {[%emt 0:00:02]} Bh3 {[%emt 0:00:22]} 21. Re1 {[%emt 0:00:12]} Rge8 {[%emt 0:00:18]} 22. fxe5 {[%emt 0:01:05]} fxe5 {[%emt 0:00:19]} 23. Qh6 {[%emt 0:01:12]} Bf5 {[%emt 0:00:02]} 24. Ne3 {[%emt 0:00:01]} Bg6 {[%emt 0:00:01]} 25. Qh3+ {[%emt 0:00:23]} Kb8 {[%emt 0:00:01]} 26. Nc3 {[%emt 0:00:01]} Bc5 {[%emt 0:00:29]} 27. Nf5 {[%emt 0:00:15]} Bd4 {[%emt 0:00:15]} 28. g4 {[%emt 0:00:02]} Qa5 {[%emt 0:00:23]} 29. Ka2 {[%emt 0:00:13]} Bxc3 {[%emt 0:00:03]} 30. bxc3 {[%emt 0:00:03]} h5 {[%emt 0:00:51]} 31. Bb3 {[%emt 0:00:50]} hxg4 {[%emt 0:00:03]} 32. Qxg4 {[%emt 0:00:01]} Qxc3 {[%emt 0:00:05]} 33. Re4 {[%emt 0:00:07]} Rh8 {[%emt 0:01:08]} 34. Rb4 {[%emt 0:00:12]} Rxh2 {[%emt 0:00:20]} 35. Qe4 {[%emt 0:00:17]} Bxf5 {[%emt 0:00:05]} 36. Qxf5 {[%emt 0:00:01]} Rh1 {[%emt 0:00:04]} 0-1

[Event "1st Chateau Montaiguillon Rapid 2019"]
[Site "Montagne"]
[Date "2019.09.08"]
[Round "7.2"]
[White "Sochacki, Christophe"]
[Black "Salles, Louis"]
[Result "1-0"]
[ECO "B53"]
[WhiteElo "2479"]
[BlackElo "2206"]
[Annotator "ChessBase"]
[PlyCount "77"]
[EventDate "2019.09.08"]
[EventType "swiss"]
[EventCountry "FRA"]
[SourceTitle "playchess.com"]
[Source "ChessBase"]
[SourceQuality "1"]
[TimeControl "720+3"]

1. e4 {[%emt 0:00:00]} c5 {[%emt 0:00:00]} 2. Nf3 {[%emt 0:00:00]} d6 {[%emt 0:00:00]} 3. d4 {[%emt 0:00:00]} cxd4 {[%emt 0:00:01]} 4. Qxd4 {[%emt 0:00:01]} Nc6 {[%emt 0:00:06]} 5. Bb5 {[%emt 0:00:01]} Bd7 {[%emt 0:00:01]} 6. Bxc6 Bxc6 {[%emt 0:00:01]} 7. Nc3 {[%emt 0:00:05]} e5 {[%emt 0:00:02]} 8. Qd3 {[%emt 0:00:07]} h6 {[%emt 0:00:02]} 9. O-O {[%emt 0:01:20]} Nf6 {[%emt 0:00:01]} 10. Rd1 {[%emt 0:00:11]} Be7 {[%emt 0:00:10]} 11. a4 {[%emt 0:00:02]} O-O {[%emt 0:00:16]} 12. h3 {[%emt 0:00:37]} Rc8 {[%emt 0:02:09]} 13. Be3 {[%emt 0:00:43]} Qc7 {[%emt 0:00:01]} 14. a5 {[%emt 0:01:06]} Qb8 {[%emt 0:00:27]} 15. Nd2 {[%emt 0:00:26]} Rfd8 {[%emt 0:00:50]} 16. Nd5 {[%emt 0:00:02]} Nxd5 {[%emt 0:00:44]} 17. exd5 {[%emt 0:00:02]} Bd7 {[%emt 0:00:01]} 18. f4 {[%emt 0:00:14]} exf4 {[%emt 0:01:23]} 19. Bxf4 {[%emt 0:00:02]} Qc7 {[%emt 0:00:25]} 20. c3 {[%emt 0:00:03]} Re8 {[%emt 0:00:11]} 21. Kh1 {[%emt 0:00:20]} Bf8 {[%emt 0:00:29]} 22. Bg3 {[%emt 0:01:47]} Qd8 {[%emt 0:00:32]} 23. Rf1 {[%emt 0:00:24]} Qg5 {[%emt 0:00:51]} 24. Rf3 {[%emt 0:00:17]} Qh5 {[%emt 0:01:01]} 25. Kg1 {[%emt 0:00:39]} f5 {[%emt 0:00:21]} 26. Bf2 {[%emt 0:00:17]} a6 {[%emt 0:00:10]} 27. Bd4 {[%emt 0:00:14]} Re7 {[%emt 0:01:36]} 28. Nf1 {[%emt 0:00:16]} Qf7 {[%emt 0:00:32]} 29. Ne3 {[%emt 0:00:16]} g6 {[%emt 0:00:19]} 30. Raf1 {[%emt 0:00:06]} Rce8 {[%emt 0:00:21]} 31. g4 {[%emt 0:00:37]} Bg7 {[%emt 0:00:07]} 32. gxf5 {[%emt 0:00:10]} Bxd4 {[%emt 0:00:11]} 33. Qxd4 {[%emt 0:00:38]} Re4 {[%emt 0:00:06]} 34. Qd2 {[%emt 0:00:39]} Qf6 {[%emt 0:00:08]} 35. Ng4 {[%emt 0:00:03]} Rxg4+ {[%emt 0:00:02]} 36. hxg4 {[%emt 0:00:01]} gxf5 {[%emt 0:00:02]} 37. gxf5 {[%emt 0:00:08]} Kh7 {[%emt 0:00:01]} 38. Rg3 {[%emt 0:00:10]} Qh4 {[%emt 0:00:02]} 39. Qg2 {[%emt 0:00:08]} 1-0

[Event "1st Chateau Montaiguillon Rapid 2019"]
[Site "Montagne"]
[Date "2019.09.08"]
[Round "8.3"]
[White "Estadieu, Romeo"]
[Black "Mullon, Jean-Baptiste"]
[Result "0-1"]
[ECO "D45"]
[WhiteElo "2099"]
[BlackElo "2357"]
[Annotator "NA"]
[PlyCount "38"]
[EventDate "2019.09.08"]
[EventType "swiss"]
[EventCountry "FRA"]
[SourceTitle "playchess.com"]
[Source "ChessBase"]
[SourceQuality "1"]
[TimeControl "720+3"]

1. d4 {[%emt 0:00:00]} d5 {[%emt 0:00:02]} 2. c4 {[%emt 0:00:00]} c6 {[%emt 0:00:01]} 3. Nf3 {[%emt 0:00:02]} Nf6 {[%emt 0:00:02]} 4. Nc3 {[%emt 0:00:01]} e6 {[%emt 0:00:09]} 5. e3 {[%emt 0:00:02]} Nbd7 {[%emt 0:00:04]} 6. Qc2 {[%emt 0:00:03]} Bd6 {[%emt 0:00:06]} 7. b3 {[%emt 0:00:06]} O-O {[%emt 0:00:12]} 8. Bb2 {[%emt 0:00:02]} Qe7 {[%emt 0:00:03]} 9. Be2 {[%emt 0:00:09]} a6 {[%emt 0:00:06]} 10. h3 {[%emt 0:01:40]} Re8 {[%emt 0:01:13]} 11. g4 {[%emt 0:01:45]} Bb4 {[%emt 0:02:45]} 12. Nd2 {[%emt 0:03:22]} Nf8 {[%emt 0:00:26]} 13. O-O-O {[%emt 0:00:49]} b6 {[%emt 0:01:36]} 14. e4 {[%emt 0:02:52]} Bb7 {[%emt 0:00:36]} 15. e5 {[%emt 0:00:49]} N6d7 {[%emt 0:00:04]} 16. cxd5 {[%emt 0:00:16]} cxd5 {[%emt 0:00:06]} 17. Kb1 {[%emt 0:00:07]} Rec8 {[%emt 0:05:20]} 18. Rc1 {[%emt 0:00:04]} b5 {[%emt 0:00:07]} 19. f4 {[%emt 0:00:07]} Bxc3 {[%emt 0:00:09]} 0-1